fUSD/lending_fUSD_20240826
["ID","MTS","AMOUNT","RATE_DAILY","PERIOD"]
[336149619,1724713336874,500.0,0.0001,2]
[336149620,1724713337630,500.0,0.0001,2]
[336149621,1724713338384,500.0,0.0001,2]
[336149622,1724713372478,500.0,0.0001,2]
[336149623,1724713374088,500.0,0.0001,2]
[336149624,1724713375020,500.0,0.0001,2]
[336149625,1724713404963,500.0,0.0001,2]
[336149626,1724713405713,500.0,0.0001,2]
[336149637,1724713440103,500.0,0.0001,2]
[336149638,1724713440892,500.0,0.0001,2]
[336149639,1724713441728,500.0,0.0001,2]
[336149640,1724713443236,500.0,0.0001,2]
[336149641,1724713443990,500.0,0.0001,2]
[336149642,1724713444749,500.0,0.0001,2]
[336149643,1724713445516,500.0,0.0001,2]
[336149644,1724713446298,500.0,0.0001,2]
[336149645,1724713447025,500.0,0.0001,2]
[336149646,1724713447768,500.0,0.0001,2]
[336149647,1724713448518,500.0,0.0001,2]
[336149648,1724713449245,500.0,0.0001,2]
[336149649,1724713450014,500.0,0.0001,2]
[336149650,1724713450764,500.0,0.0001,2]
[336149651,1724713451503,500.0,0.0001,2]
[336149652,1724713452245,500.0,0.0001,2]
[336149653,1724713471506,500.0,0.0001,2]
[336149654,1724713472254,500.0,0.0001,2]
[336149655,1724713473078,500.0,0.0001,2]
[336149656,1724713473837,500.0,0.0001,2]
[336149657,1724713474589,500.0,0.0001,2]
[336149658,1724713475334,500.0,0.0001,2]
[336149659,1724713476082,500.0,0.0001,2]
[336149660,1724713476820,500.0,0.0001,2]
[336149661,1724713477560,500.0,0.0001,2]
[336149662,1724713478310,500.0,0.0001,2]
[336149663,1724713479132,500.0,0.0001,2]
[336149664,1724713480214,500.0,0.0001,2]
[336149665,1724713515436,150.0,9.888e-05,2]
[336149666,1724713518124,500.0,0.0001,2]
[336149667,1724713518893,583.81,0.0001,2]
[336149668,1724713545626,500.0,0.0001,2]
[336149669,1724713546402,500.0,0.0001,2]
[336149670,1724713547152,500.0,0.0001,2]
[336149671,1724713547919,155.5,0.0001,2]
[336149705,1724713782579,366.45,8.219e-05,2]
[336149710,1724713807986,159.41435375,0.00010009,2]
[336149712,1724713816390,217.17304257,0.00010009,2]
[336149724,1724713831555,-340.78735789,0.00010026,2]
[336149725,1724713831568,-140.38277617,0.00010026,2]
[336149726,1724713831579,-400.62644373,0.00010028,2]
[336149727,1724713831591,-9.29355627,0.00010028,2]
[336149728,1724713831601,-155.0,0.00010097,2]
[336149729,1724713831610,-300.0,0.000101,3]
[336149730,1724713831620,-783.11831225,0.000101,2]
[336149731,1724713831629,-600.0,0.000102,3]
[336149732,1724713831639,-783.11831224,0.000102,2]
[336149733,1724713831648,-1000.0,0.000103,3]
[336149734,1724713831658,-10000.0,0.00010374,2]
[336149735,1724713831667,-1300.0,0.000104,3]
[336149736,1724713831677,-357.01,0.000104,2]
[336149737,1724713831687,-531.71,0.000104,2]
[336149738,1724713831697,-356.68,0.000104,2]
[336149739,1724713831707,-531.71,0.000104,2]
[336149740,1724713831716,-366.45,0.00010468,2]
[336149741,1724713831726,-499.99,0.00010469,2]
[336149742,1724713831735,-880.61,0.000105,2]
[336149743,1724713831744,-828.43,0.000105,2]
[336149744,1724713831754,-1600.0,0.000105,3]
[336149745,1724713831763,-150.99,0.000105,2]
[336149746,1724713831772,-3939.36827943,0.00010505,2]
[336149747,1724713831781,-893.9154734,0.00010566,2]
[336149748,1724713831790,-300.0,0.000106,3]
[336149749,1724713831799,-300.0,0.000107,3]
[336149750,1724713831808,-203.20403669,0.00010799,2]
[336149751,1724713831817,-736.5947,0.000108,2]
[336149752,1724713831826,-1288.8534,0.000108,2]
[336149753,1724713831835,-1581.26,0.000108,2]
[336149754,1724713831845,-300.0,0.000108,3]
[336149755,1724713831854,-150.0,0.00010825,2]
[336149756,1724713831864,-623.0,0.00010827,2]
[336149757,1724713831873,-1917.0,0.00010827,2]
[336149758,1724713831882,-1259.0,0.00010827,2]
[336149759,1724713831891,-1544.0,0.00010828,2]
[336149760,1724713831900,-810.0,0.00010828,2]
[336149761,1724713831910,-447.0,0.00010828,2]
[336149762,1724713831919,-150.0,0.00010828,2]
[336149763,1724713831928,-556.0,0.00010828,2]
[336149764,1724713831938,-1138.0,0.00010828,2]
[336149765,1724713831947,-1897.0,0.00010828,2]
[336149766,1724713831956,-552.0,0.00010828,2]
[336149767,1724713831965,-248.0,0.00010828,2]
[336149768,1724713831974,-1154.0,0.00010828,2]
[336149769,1724713831983,-764.0,0.00010828,2]
[336149770,1724713831992,-3321.0,0.00010828,2]
[336149771,1724713832002,-1000.0,0.00010858,2]
[336149772,1724713832013,-150.0,0.00010882,2]
[336149773,1724713832024,-157.95458,0.0001089,2]
[336149774,1724713832033,-6135.35461983,0.0001089,2]
[336149775,1724713832043,-178.47156,0.0001089,2]
[336149776,1724713832052,-347.853,0.00010899,2]
[336149777,1724713832063,-155.0,0.00010899,2]
[336149778,1724713832074,-5026.91499771,0.00010899,2]
[336149779,1724713832084,-5026.91499765,0.00010899,2]
[336149780,1724713832094,-5026.91499765,0.00010899,2]
[336149781,1724713832105,-5026.91499765,0.00010899,2]
[336149782,1724713832116,-5026.91499765,0.00010899,2]
[336149783,1724713832127,-2852.9344,0.000109,2]
[336149784,1724713832138,-1476.7746,0.000109,2]
[336149785,1724713832149,-1000.0,0.000109,2]
[336149786,1724713832160,-693.9613,0.000109,2]
[336149787,1724713832170,-28927.5474,0.000109,2]
[336149788,1724713832180,-938.4516,0.000109,2]
[336149789,1724713832190,-8703.7603,0.000109,2]
[336149790,1724713832202,-539.72896222,0.000109,2]
[336149791,1724713832211,-35119.4521,0.000109,2]
[336149792,1724713832220,-156.7847564,0.000109,2]
[336149793,1724713832229,-183.50459347,0.000109,2]
[336149794,1724713832241,-500.0,0.000109,2]
[336149795,1724713832251,-365.2039,0.000109,2]
[336149796,1724713832261,-361.55509193,0.000109,2]
[336149797,1724713832272,-357.01,0.000109,2]
[336149798,1724713832283,-150.0,0.000109,2]
[336149799,1724713832293,-300.0,0.000109,3]
[336149800,1724713832303,-18905.31741062,0.000109,2]
[336149801,1724713832312,-500.0,0.00010911,2]
[336149802,1724713832321,-500.0,0.00010912,2]
[336149803,1724713832330,-500.0,0.00010912,2]
[336149804,1724713832341,-159.606,0.00010945,2]
[336149805,1724713832351,-155.0,0.00010949,2]
[336149806,1724713832360,-378.14902508,0.00010958,2]
[336149807,1724713832369,-200.0,0.00010959,2]
[336149808,1724713832379,-179.07,0.00010959,2]
[336149809,1724713832389,-1500.0,0.00010959,2]
[336149810,1724713832398,-250.0,0.00010959,2]
[336149811,1724713832406,-287.31,0.00010959,2]
[336149812,1724713832419,-2000.0,0.00010959,2]
[336149813,1724713832430,-500.0,0.00010972,2]
[336149814,1724713832440,-500.0,0.00010973,2]
[336149815,1724713832450,-200.0,0.00010973,2]
[336149816,1724713832462,-500.0,0.00010973,2]
[336149817,1724713832471,-316.61202881,0.00010979,2]
[336149818,1724713832480,-500.0,0.00010981,2]
[336149819,1724713832493,-150.89,0.00010986,2]
[336149820,1724713832504,-152.69,0.00010986,2]
[336149821,1724713832515,-298.91848984,0.00010989,2]
[336149822,1724713832525,-264.6397361,0.00010989,2]
[336149823,1724713832535,-807.96310011,0.00010989,2]
[336149824,1724713832544,-150.75,0.0001099,2]
[336149825,1724713832554,-150.75,0.0001099,2]
[336149826,1724713832564,-150.75,0.0001099,2]
[336149827,1724713832573,-150.75,0.0001099,2]
[336149828,1724713832582,-150.75,0.0001099,2]
[336149829,1724713832592,-150.75,0.0001099,2]
[336149830,1724713832601,-150.75,0.0001099,2]
[336149831,1724713832610,-150.75,0.0001099,2]
[336149832,1724713832619,-150.75,0.0001099,2]
[336149833,1724713832628,-150.75,0.0001099,2]
[336149834,1724713832637,-150.75,0.0001099,2]
[336149835,1724713832646,-150.75,0.0001099,2]
[336149836,1724713832655,-150.75,0.0001099,2]
[336149837,1724713832665,-150.75,0.0001099,2]
[336149838,1724713832675,-500.0,0.0001099,2]
[336149839,1724713832684,-723.7000812,0.00010993,2]
[336149840,1724713832693,-8732.24146017,0.00010997,2]
[336149841,1724713832702,-500.0,0.00010998,2]
[336149842,1724713832713,-742.19,0.00010998,2]
[336149843,1724713832724,-500.0,0.00010998,2]
[336149844,1724713832733,-500.0,0.00010998,2]
[336149845,1724713832744,-500.0,0.00010998,2]
[336149846,1724713832753,-500.0,0.00010998,2]
[336149847,1724713832763,-500.0,0.00010998,2]
[336149848,1724713832773,-472.05832132,0.00010998,2]
[336149849,1724713832784,-500.0,0.00010998,2]
[336149850,1724713832794,-500.0,0.00010998,2]
[336149851,1724713832804,-485.22803693,0.00010999,2]
[336149852,1724713832813,-216.73934743,0.00010999,2]
[336149853,1724713832822,-500.0,0.00010999,2]
[336149854,1724713832833,-500.0,0.00010999,2]
[336149855,1724713832842,-500.0,0.00010999,2]
[336149856,1724713832853,-407.07,0.00010999,2]
[336149857,1724713832864,-500.0,0.00010999,2]
[336149858,1724713832874,-742.19,0.00010999,2]
[336149859,1724713832885,-742.19,0.00010999,2]
[336149860,1724713832896,-742.19,0.00010999,2]
[336149861,1724713832906,-742.19,0.00010999,2]
[336149862,1724713832916,-742.19,0.00010999,2]
[336149863,1724713832926,-742.19,0.00010999,2]
[336149864,1724713832936,-742.19,0.00010999,2]
[336149865,1724713832948,-742.19,0.00010999,2]
[336149866,1724713832959,-742.19,0.00010999,2]
[336149867,1724713832969,-742.19,0.00010999,2]
[336149868,1724713832979,-742.19,0.00010999,2]
[336149869,1724713832989,-742.19,0.00010999,2]
[336149870,1724713833001,-742.19,0.00010999,2]
[336149871,1724713833011,-742.19,0.00010999,2]
[336149872,1724713833020,-742.19,0.00010999,2]
[336149873,1724713833030,-742.19,0.00010999,2]
[336149874,1724713833039,-157.70982854,0.00010999,2]
[336149875,1724713833079,-584.48017146,0.00010999,2]
[336149876,1724713833088,-14.49167287,0.00010999,2]
[336149877,1724713833099,-727.69832713,0.00010999,2]
[336149878,1724713833108,-742.19,0.00010999,2]
[336149879,1724713833117,-742.19,0.00010999,2]
[336149880,1724713833126,-742.19,0.00010999,2]
[336149881,1724713833136,-742.19,0.00010999,2]
[336149882,1724713833146,-422.01208082,0.00010999,2]
[336149883,1724713833157,-320.21413256,0.00010999,2]
[336149884,1724713833167,-500.0,0.00010999,2]
[336149885,1724713833176,-500.0,0.00010999,2]
[336149886,1724713833186,-500.0,0.00010999,2]
[336149887,1724713833195,-447.54523568,0.00010999,2]
[336149888,1724713833204,-492.8889831,0.00010999,2]
[336149889,1724713833216,-7.1110169,0.00010999,2]
[336149890,1724713833225,-187.12433044,0.00010999,2]
[336149891,1724713833235,-500.0,0.00010999,2]
[336149892,1724713833244,-500.0,0.00010999,2]
[336149893,1724713833254,-500.0,0.00010999,2]
[336149894,1724713833263,-525.51519345,0.00010999,2]
[336149895,1724713833272,-500.0,0.00010999,2]
[336149896,1724713833281,-500.0,0.00010999,2]
[336149897,1724713833291,-500.0,0.00010999,2]
[336149898,1724713833300,-500.0,0.00010999,2]
[336149899,1724713833310,-500.0,0.00010999,2]
[336149900,1724713833319,-163.90595851,0.00010999,2]
[336149901,1724713833328,-209.55953194,0.00010999,2]
[336149902,1724713833337,-89.91083315,0.00010999,2]
[336149903,1724713833349,-410.08916685,0.00010999,2]
[336149904,1724713833358,-500.0,0.00010999,2]
[336149905,1724713833367,-500.0,0.00010999,2]
[336149906,1724713833376,-500.0,0.00010999,2]
[336149907,1724713833386,-500.0,0.00010999,2]
[336149908,1724713833395,-203.01956037,0.00010999,2]
[336149909,1724713833407,-296.98043963,0.00010999,2]
[336149910,1724713833419,-495.60967777,0.00010999,2]
[336149911,1724713833431,-4.39032223,0.00010999,2]
[336149912,1724713833440,-500.0,0.00010999,2]
[336149913,1724713833450,-500.0,0.00010999,2]
[336149914,1724713833460,-500.0,0.00010999,2]
[336149915,1724713833469,-470.43217777,0.00010999,2]
[336149916,1724713833483,-29.56782223,0.00010999,2]
[336149917,1724713833493,-500.0,0.00010999,2]
[336149918,1724713833502,-346.55177914,0.00010999,2]
[336149919,1724713833514,-153.44822086,0.00010999,2]
[336149920,1724713833524,-389.23055968,0.00010999,2]
[336149921,1724713833536,-110.76944032,0.00010999,2]
[336149922,1724713833548,-325.29677195,0.00010999,2]
[336149923,1724713833560,-174.70322805,0.00010999,2]
[336149924,1724713833569,-242.49404193,0.00010999,2]
[336149925,1724713833586,-257.50595807,0.00010999,2]
[336149926,1724713833598,-309.63404193,0.00010999,2]
[336149927,1724713833610,-190.36595807,0.00010999,2]
[336149928,1724713833620,-500.0,0.00010999,2]
[336149929,1724713833631,-13.01192511,0.00010999,2]
[336149930,1724713833643,-450.50241639,0.00010999,2]
[336149931,1724713833654,-36.4856585,0.00010999,2]
[336149932,1724713833664,-500.0,0.00010999,2]
[336149933,1724713833674,-99.48917913,0.00010999,2]
[336149947,1724713837626,-309.31339889,0.00010505,2]
[336149949,1724713837636,-3603.05902972,0.00010899,2]
[336149951,1724713837776,-1423.85596793,0.00010899,2]
[336149952,1724713837786,-400.51082087,0.00010999,2]
[336149953,1724713837796,-500.0,0.00010999,2]
[336149954,1724713837806,-500.0,0.00010999,2]
[336149955,1724713837816,-500.0,0.00010999,2]
[336149956,1724713837826,-500.0,0.00010999,2]
[336149957,1724713837836,-500.0,0.00010999,2]
[336149958,1724713837846,-500.0,0.00010999,2]
[336149959,1724713837855,-500.0,0.00010999,2]
[336149960,1724713837865,-500.0,0.00010999,2]
[336149961,1724713837875,-500.0,0.00010999,2]
[336149962,1724713837885,-500.0,0.00010999,2]
[336149963,1724713837894,-500.0,0.00010999,2]
[336149964,1724713837904,-500.0,0.00010999,2]
[336149965,1724713837913,-500.0,0.00010999,2]
[336149966,1724713837922,-500.0,0.00010999,2]
[336149968,1724713837932,-500.0,0.00010999,2]
[336149970,1724713837941,-500.0,0.00010999,2]
[336149972,1724713837951,-500.0,0.00010999,2]
[336149973,1724713837960,-500.0,0.00010999,2]
[336149975,1724713837970,-500.0,0.00010999,2]
[336149978,1724713837980,-500.0,0.00010999,2]
[336149980,1724713837991,-471.84,0.00010999,2]
[336149982,1724713838000,-500.0,0.00010999,2]
[336149983,1724713838009,-500.0,0.00010999,2]
[336149985,1724713838018,-500.0,0.00010999,2]
[336149987,1724713838027,-500.0,0.00010999,2]
[336149989,1724713838036,-500.0,0.00010999,2]
[336149991,1724713838045,-500.0,0.00010999,2]
[336149992,1724713838055,-500.0,0.00010999,2]
[336149994,1724713838063,-500.0,0.00010999,2]
[336149997,1724713838074,-560.21097553,0.00010999,2]
[336149999,1724713838084,-500.0,0.00010999,2]
[336150001,1724713838094,-26.27879609,0.00010999,2]
[336150003,1724713838106,-473.72120391,0.00010999,2]
[336150005,1724713838115,-500.0,0.00010999,2]
[336150007,1724713838123,-236.19553288,0.00010999,2]
[336150009,1724713838135,-404.05446712,0.00010999,2]
[336150012,1724713838143,-500.0,0.00010999,2]
[336150015,1724713838152,-500.0,0.00010999,2]
[336150016,1724713838161,-116.34444481,0.00010999,2]
[336150017,1724713838172,-383.65555519,0.00010999,2]
[336150019,1724713838181,-377.60518799,0.00010999,2]
[336150021,1724713838190,-500.0,0.00010999,2]
[336150023,1724713838200,-500.0,0.00010999,2]
[336150025,1724713838210,-500.0,0.00010999,2]
[336150028,1724713838219,-500.0,0.00010999,2]
[336150029,1724713838228,-500.0,0.00010999,2]
[336150032,1724713838238,-500.0,0.00010999,2]
[336150034,1724713838250,-500.0,0.00010999,2]
[336150036,1724713838259,-500.0,0.00010999,2]
[336150038,1724713838268,-500.0,0.00010999,2]
[336150039,1724713838277,-196.7485439,0.00010999,2]
[336150040,1724713838286,-500.0,0.00010999,2]
[336150041,1724713838295,-486.99092383,0.00010999,2]
[336150042,1724713838308,-13.00907617,0.00010999,2]
[336150043,1724713838317,-500.0,0.00010999,2]
[336150044,1724713838326,-500.0,0.00010999,2]
[336150045,1724713838335,-500.0,0.00010999,2]
[336150046,1724713838344,-500.0,0.00010999,2]
[336150047,1724713838353,-500.0,0.00010999,2]
[336150048,1724713838362,-500.0,0.00010999,2]
[336150049,1724713838372,-500.0,0.00010999,2]
[336150050,1724713838381,-500.0,0.00010999,2]
[336150051,1724713838390,-545.0,0.00010999,2]
[336150052,1724713838399,-3603.54325192,0.00011,2]
[336150053,1724713838422,-6663.88942196,0.00011,2]
[336150054,1724713838433,-1003.90864123,0.00011,2]
[336150055,1724713838444,-275.96458678,0.00011,2]
[336150220,1724713839992,-1439.07083368,0.00010899,2]
[336150544,1724713843211,-478.6711612,0.00010397,2]
[336150558,1724713843276,-49.2588388,0.00010397,2]
[336150561,1724713843285,-578.33529998,0.00010899,2]
[336150563,1724713843296,-3009.50886399,0.00010899,2]
[336150565,1724713843306,-5026.91499765,0.00010899,2]
[336150567,1724713843315,-219872.02865252,0.00011,2]
[336150582,1724713843448,-531.17,0.000104,2]
[336150584,1724713843458,-1437.23098272,0.00011,2]
[336150586,1724713843470,-778.84,0.00011,2]
[336150588,1724713843480,-323.966194,0.00011,2]
[336150590,1724713843492,-869.95370905,0.00011,2]
[336150814,1724713845664,-3795.64476265,0.00010374,2]
[336150818,1724713845677,-520.38152683,0.00010374,2]
[336150821,1724713845689,-4701.17148775,0.00010374,2]
[336150824,1724713845699,-4887.58819467,0.00011,2]
[336150827,1724713845711,-364.41887453,0.00011,2]
[336150830,1724713845723,-12695.33713865,0.00011,2]
[336150834,1724713845741,-417.47216,0.00011,2]
[336150836,1724713845752,-3570.01645347,0.00011,2]
[336150838,1724713845763,-612.67,0.00011,2]
[336150841,1724713845775,-252.32,0.00011,2]
[336150844,1724713845793,-1429.24671374,0.00011,2]
[336150846,1724713845808,-273.72011597,0.00011,2]
[336150850,1724713845840,-1102.43613394,0.00011,2]
[336150856,1724713845891,-2736.68052682,0.00011,2]
[336150858,1724713845903,-342952.90929825,0.00011,2]
[336150860,1724713845914,-281.00881241,0.00011,2]
[336152309,1724713861786,-353744.41643993,0.00011,2]
[336152341,1724713862117,-2990.50036596,0.00011,2]
[336152342,1724713862128,-343423.96883646,0.00011,2]
[336152343,1724713862139,-5564.51153717,0.00011,2]
[336152344,1724713862150,-7818.3596,0.00011,2]
[336153201,1724714106545,280.2,0.0001,2]
[336153202,1724714243474,1336.67,9.994e-05,2]
[336153203,1724714273537,1050.0,0.0001,2]
[336153204,1724714309240,263.85,9.986e-05,2]
[336153205,1724714341752,577.65,9.982e-05,2]
[336153206,1724714402186,361.49,8.219e-05,2]
[336153207,1724714470721,2820.26768614,0.0001,2]
[336153208,1724714485847,160.60814101,9.962e-05,2]
[336153209,1724714497441,350.15,9.962e-05,2]
[336153210,1724714546978,183.48,7.229e-05,2]
[336153212,1724714566711,500.0,0.0001,2]
[336153218,1724714656839,500.0,0.0001,2]
[336153219,1724714657719,500.0,0.0001,2]
[336153220,1724714658253,250.0,9.953e-05,2]
[336153221,1724714658508,500.0,0.0001,2]
[336153222,1724714659517,500.0,0.0001,2]
[336153223,1724714697922,500.0,0.0001,2]
[336153224,1724714698669,500.0,0.0001,2]
[336153226,1724714756810,-1952.49,0.00010032,2]
[336153227,1724714756839,-3819.08329108,0.00010399,2]
[336153228,1724714756864,-170.98,0.00010468,2]
[336153229,1724714756889,-361.49,0.00010476,2]
[336153230,1724714756914,-300.0,0.00010699,2]
[336153231,1724714756935,-3019.857,0.000107,2]
[336153232,1724714756958,-1727.0,0.000107,2]
[336153233,1724714756979,-892.95258232,0.00010713,2]
[336153234,1724714757001,-150.0,0.00010799,2]
[336153235,1724714757022,-304.73757767,0.00010799,2]
[336153236,1724714757044,-155.00000028,0.00010799,2]
[336153237,1724714757065,-14506.96954865,0.000108,2]
[336153239,1724714789395,601.94,0.0001,2]
[336153246,1724714868264,537.88,9.965e-05,2]
[336153247,1724714891309,341.29,8.219e-05,2]
[336153254,1724714898164,292.46,9.953e-05,2]
[336153263,1724714920039,500.0,0.0001,2]
[336153264,1724714920800,500.0,0.0001,2]
[336153265,1724714921563,500.0,0.0001,2]
[336153266,1724714922312,500.0,0.0001,2]
[336153267,1724714923122,500.0,0.0001,2]
[336153282,1724714977276,297.41,9.959e-05,2]
[336153284,1724714989033,500.0,0.0001,2]
[336153285,1724714989805,500.0,0.0001,2]
[336153286,1724714990560,500.0,0.0001,2]
[336153287,1724714991322,638.25,0.0001,2]
[336153316,1724715031795,-155.0,0.00010097,2]
[336153317,1724715031805,-341.29,0.00010474,2]
[336153318,1724715031814,-155.0,0.00010505,2]
[336153319,1724715031824,-150.4,0.00010574,2]
[336153320,1724715031833,-1951.9998,0.000107,2]
[336153321,1724715031843,-183.23410944,0.00010786,2]
[336153322,1724715031852,-300.0,0.00010799,2]
[336153323,1724715031862,-150.0,0.00010799,2]
[336153324,1724715031871,-6743.61141636,0.000108,2]
[336153325,1724715031883,-440.46604856,0.000108,2]
[336153326,1724715031894,-340.28165674,0.000108,2]
[336153327,1724715032114,-3834.18185265,0.000108,2]
[336153328,1724715032126,-546.16187851,0.000108,2]
[336153329,1724715032146,-655.60712406,0.000108,2]
[336153330,1724715032157,-2883.21346343,0.000108,2]
[336153332,1724715032176,-262.46590742,0.000108,2]
[336153336,1724715038144,-155.0,0.00010026,2]
[336153337,1724715038154,-155.56398247,0.00010471,2]
[336153338,1724715038163,-69787.04110362,0.000108,2]
[336153339,1724715038172,-245000.0,0.00010872,2]
[336153340,1724715038181,-217.35405,0.0001089,2]
[336153341,1724715038190,-8628.07,0.0001089,2]
[336153342,1724715038200,-698.86020573,0.0001089,2]
[336153343,1724715038209,-335.29615481,0.0001089,2]
[336153344,1724715038219,-1281.36675806,0.0001089,2]
[336153345,1724715038228,-160.72106419,0.0001089,2]
[336153346,1724715038237,-354.8513,0.00010897,2]
[336153347,1724715038246,-7500.0,0.00010899,2]
[336153348,1724715038255,-499.99,0.00010899,2]
[336153349,1724715038264,-170.15387177,0.00010899,2]
[336153350,1724715038273,-322.24094211,0.00010899,2]
[336153351,1724715038282,-322.24094209,0.00010899,2]
[336153352,1724715038291,-322.24094209,0.000109,2]
[336153354,1724715038300,-300.0,0.000109,3]
[336153356,1724715038309,-336.40215258,0.000109,2]
[336153358,1724715038318,-322.24094209,0.000109,2]
[336153360,1724715038327,-500.0,0.00010911,2]
[336153362,1724715038336,-500.0,0.00010912,2]
[336153364,1724715038345,-1897.0,0.00010938,2]
[336153366,1724715038354,-552.0,0.00010938,2]
[336153368,1724715038363,-3321.0,0.00010938,2]
[336153370,1724715038372,-248.0,0.00010938,2]
[336153372,1724715038381,-764.0,0.00010938,2]
[336153375,1724715038390,-1154.0,0.00010938,2]
[336153377,1724715038399,-622.0,0.00010938,2]
[336153379,1724715038408,-5845.0,0.00010938,2]
[336153381,1724715038417,-352.159,0.00010938,2]
[336153383,1724715038426,-1927.0,0.00010938,2]
[336153385,1724715038435,-1259.0,0.00010938,2]
[336153386,1724715038444,-1544.0,0.00010938,2]
[336153388,1724715038453,-920.731,0.00010938,2]
[336153391,1724715038462,-3700.32144493,0.00010949,2]
[336153392,1724715038471,-500.0,0.00010958,2]
[336153394,1724715038480,-500.0,0.00010958,2]
[336153397,1724715038489,-500.0,0.00010958,2]
[336153399,1724715038498,-500.0,0.00010958,2]
[336153401,1724715038508,-500.0,0.00010958,2]
[336153403,1724715038516,-500.0,0.00010958,2]
[336153404,1724715038525,-500.0,0.00010958,2]
[336153406,1724715038534,-530.7,0.00010958,2]
[336153408,1724715038543,-500.0,0.00010958,2]
[336153410,1724715038552,-500.0,0.00010958,2]
[336153412,1724715038561,-500.0,0.00010958,2]
[336153414,1724715038570,-500.0,0.00010958,2]
[336153416,1724715038579,-500.0,0.00010958,2]
[336153418,1724715038590,-500.0,0.00010958,2]
[336153420,1724715038599,-500.0,0.00010958,2]
[336153423,1724715038609,-168.0547506,0.00010958,2]
[336153425,1724715038618,-500.0,0.00010958,2]
[336153427,1724715038627,-500.0,0.00010958,2]
[336153429,1724715038636,-479.23100943,0.00010958,2]
[336153431,1724715038645,-171.83,0.00010959,2]
[336153433,1724715038654,-256.5,0.00010959,2]
[336153435,1724715038663,-250.0,0.00010959,2]
[336153437,1724715038672,-2000.0,0.00010959,2]
[336153439,1724715038682,-150.76,0.0001099,2]
[336153440,1724715038691,-150.76,0.0001099,2]
[336153442,1724715038700,-2016.83135392,0.0001099,2]
[336153444,1724715038709,-150.76,0.0001099,2]
[336153446,1724715038719,-150.76,0.0001099,2]
[336153448,1724715038728,-150.76,0.0001099,2]
[336153450,1724715038737,-150.76,0.0001099,2]
[336153452,1724715038746,-150.76,0.0001099,2]
[336153454,1724715038755,-150.76,0.0001099,2]
[336153456,1724715038764,-150.76,0.0001099,2]
[336153458,1724715038773,-150.76,0.0001099,2]
[336153460,1724715038782,-5261.88030705,0.00010997,2]
[336153462,1724715038791,-588.82412706,0.00010998,2]
[336153464,1724715038800,-274.78397421,0.00010999,2]
[336153466,1724715038809,-500.0,0.00010999,2]
[336153468,1724715038818,-500.0,0.00010999,2]
[336153470,1724715038827,-500.0,0.00010999,2]
[336153472,1724715038836,-407.07,0.00010999,2]
[336153474,1724715038845,-500.0,0.00010999,2]
[336153476,1724715038854,-249.78,0.00010999,2]
[336153478,1724715038863,-500.0,0.00010999,2]